[Event "Titled Tuesday Blitz March 29 Early 2022"]
[White "Xiong, Jeffery"]
[Black "Papasimakopoulos, Alexandros"]
[WhiteFideId "2047640"]
[BlackFideId "4244125"]
[WhiteElo "2727"]
[BlackElo "2340"]
[Result "1-0"]
[Round "03"]
[TimeControl "180+1"]
[Date "2022.03.29"]
[WhiteClock "0:00:09"]
[BlackClock "0:00:08"]

1. d4 {[%clk 0:03:00]}  e6 {[%clk 0:02:58]} 2. e4 {[%clk 0:03:00]}  d5 {[%clk 0:02:58]} 3. e5 {[%clk 0:03:01]}  b6 {[%clk 0:02:58]} 4. c3 {[%clk 0:02:54]}  Qd7 {[%clk 0:02:58]} 5. h4 {[%clk 0:02:47]}  h5 {[%clk 0:02:54]} 6. Nh3 {[%clk 0:02:46]}  Ne7 {[%clk 0:02:53]} 7. Nf4 {[%clk 0:02:45]}  Ba6 {[%clk 0:02:52]} 8. Bxa6 {[%clk 0:02:42]}  Nxa6 {[%clk 0:02:53]} 9. Nxh5 {[%clk 0:02:42]}  c5 {[%clk 0:02:53]} 10. Bg5 {[%clk 0:02:34]}  Nf5 {[%clk 0:02:53]} 11. g4 {[%clk 0:02:32]}  Ne7 {[%clk 0:02:49]} 12. Nd2 {[%clk 0:02:31]}  cxd4 {[%clk 0:02:48]} 13. cxd4 {[%clk 0:02:31]}  Nb4 {[%clk 0:02:48]} 14. O-O {[%clk 0:02:23]}  O-O-O {[%clk 0:02:40]} 15. Nf3 {[%clk 0:02:19]}  Kb7 {[%clk 0:02:37]} 16. Qd2 {[%clk 0:02:18]}  Nbc6 {[%clk 0:02:35]} 17. Rfc1 {[%clk 0:02:03]}  Rc8 {[%clk 0:02:34]} 18. b4 {[%clk 0:01:57]}  Ng6 {[%clk 0:02:25]} 19. a3 {[%clk 0:01:57]}  Be7 {[%clk 0:02:20]} 20. Nxg7 {[%clk 0:01:52]}  Bxg5 {[%clk 0:02:03]} 21. hxg5 {[%clk 0:01:23]}  Nh4 {[%clk 0:01:41]} 22. Rc3 {[%clk 0:01:23]}  Ne7 {[%clk 0:01:17]} 23. Nh5 {[%clk 0:01:17]}  Nxf3+ {[%clk 0:01:05]} 24. Rxf3 {[%clk 0:01:17]}  Ng6 {[%clk 0:01:06]} 25. Rf6 {[%clk 0:01:12]}  Rc7 {[%clk 0:01:04]} 26. Rc1 {[%clk 0:01:11]}  Rhc8 {[%clk 0:01:02]} 27. Rxc7+ {[%clk 0:01:11]}  Rxc7 {[%clk 0:01:03]} 28. Kh2 {[%clk 0:01:05]}  Qa4 {[%clk 0:01:02]} 29. Rf3 {[%clk 0:01:01]}  Nh4 {[%clk 0:00:52]} 30. Rc3 {[%clk 0:00:59]}  Rxc3 {[%clk 0:00:50]} 31. Qxc3 {[%clk 0:01:00]}  Qd1 {[%clk 0:00:50]} 32. Kg3 {[%clk 0:01:01]}  Ng6 {[%clk 0:00:46]} 33. Qf3 {[%clk 0:00:51]}  Qg1+ {[%clk 0:00:46]} 34. Kh3 {[%clk 0:00:51]}  Qf1+ {[%clk 0:00:42]} 35. Kh2 {[%clk 0:00:51]}  Nh4 {[%clk 0:00:35]} 36. Qg3 {[%clk 0:00:43]}  Ng6 {[%clk 0:00:32]} 37. Nf4 {[%clk 0:00:44]}  Qc1 {[%clk 0:00:22]} 38. Nxg6 {[%clk 0:00:43]}  fxg6 {[%clk 0:00:23]} 39. Qe3 {[%clk 0:00:43]}  Qd1 {[%clk 0:00:20]} 40. Qf4 {[%clk 0:00:35]}  Ka6 {[%clk 0:00:19]} 41. Qf7 {[%clk 0:00:20]}  Qxg4 {[%clk 0:00:18]} 42. a4 {[%clk 0:00:10]}  Qh4+ {[%clk 0:00:16]} 43. Kg2 {[%clk 0:00:10]}  Qxg5+ {[%clk 0:00:15]} 44. Kf3 {[%clk 0:00:10]}  Qh5+ {[%clk 0:00:13]} 45. Ke3 {[%clk 0:00:11]}  Qg5+ {[%clk 0:00:12]} 46. Kd3 {[%clk 0:00:07]}  Qc1 {[%clk 0:00:04]} 47. b5+ {[%clk 0:00:05]}  Ka5 {[%clk 0:00:04]} 48. Qxa7+ {[%clk 0:00:06]}  Kb4 {[%clk 0:00:05]} 49. Qxb6 {[%clk 0:00:07]}  Qd1+ {[%clk 0:00:05]} 50. Ke3 {[%clk 0:00:08]}  Qe1+ {[%clk 0:00:06]} 51. Kf3 {[%clk 0:00:08]}  Qh1+ {[%clk 0:00:06]} 52. Kf4 {[%clk 0:00:05]}  Qh4+ {[%clk 0:00:06]} 53. Ke3 {[%clk 0:00:06]}  Qe4+ {[%clk 0:00:06]} 54. Kd2 {[%clk 0:00:06]}  Qf4+ {[%clk 0:00:07]} 55. Ke1 {[%clk 0:00:05]}  Qc1+ {[%clk 0:00:06]} 56. Ke2 {[%clk 0:00:05]}  Qc2+ {[%clk 0:00:07]} 57. Kf3 {[%clk 0:00:05]}  Qe4+ {[%clk 0:00:07]} 58. Kg3 {[%clk 0:00:05]}  g5 {[%clk 0:00:06]} 59. Qc5+ {[%clk 0:00:05]}  Kxa4 {[%clk 0:00:07]} 60. Qc3 {[%clk 0:00:01]}  Kxb5 {[%clk 0:00:06]} 61. f3 {[%clk 0:00:01]}  Qf4+ {[%clk 0:00:06]} 62. Kg2 {[%clk 0:00:02]}  g4 {[%clk 0:00:07]} 63. Qb3+ {[%clk 0:00:02]}  Kc6 {[%clk 0:00:07]} 64. Qa4+ {[%clk 0:00:03]}  Kb6 {[%clk 0:00:07]} 65. Qb4+ {[%clk 0:00:03]}  Kc7 {[%clk 0:00:08]} 66. Qd6+ {[%clk 0:00:03]}  Kb7 {[%clk 0:00:08]} 67. Qd7+ {[%clk 0:00:04]}  Kb8 {[%clk 0:00:08]} 68. Qd8+ {[%clk 0:00:04]}  Kb7 {[%clk 0:00:09]} 69. Qe7+ {[%clk 0:00:05]}  Kb8 {[%clk 0:00:08]} 70. Qe8+ {[%clk 0:00:04]}  Kc7 {[%clk 0:00:08]} 71. Qe7+ {[%clk 0:00:04]}  Kb8 {[%clk 0:00:08]} 72. Qd6+ {[%clk 0:00:04]}  Kb7 {[%clk 0:00:09]} 73. Qd7+ {[%clk 0:00:04]}  Kb8 {[%clk 0:00:09]} 74. Qb5+ {[%clk 0:00:04]}  Kc7 {[%clk 0:00:09]} 75. Qc5+ {[%clk 0:00:04]}  Kd7 {[%clk 0:00:10]} 76. Qd6+ {[%clk 0:00:04]}  Kc8 {[%clk 0:00:10]} 77. Qxe6+ {[%clk 0:00:05]}  Kc7 {[%clk 0:00:10]} 78. Qxg4 {[%clk 0:00:05]}  Qd2+ {[%clk 0:00:10]} 79. Kh3 {[%clk 0:00:05]}  Qe3 {[%clk 0:00:09]} 80. Qg7+ {[%clk 0:00:03]}  Kb6 {[%clk 0:00:09]} 81. Qf6+ {[%clk 0:00:04]}  Kb5 {[%clk 0:00:10]} 82. e6 {[%clk 0:00:04]}  Kc4 {[%clk 0:00:08]} 83. e7 {[%clk 0:00:05]}  Qe2 {[%clk 0:00:07]} 84. Kg4 {[%clk 0:00:05]}  Qg2+ {[%clk 0:00:07]} 85. Kh5 {[%clk 0:00:04]}  Qh3+ {[%clk 0:00:07]} 86. Kg6 {[%clk 0:00:05]}  Qg3+ {[%clk 0:00:05]} 87. Kf7 {[%clk 0:00:05]}  Qc7 {[%clk 0:00:05]} 88. Kf8 {[%clk 0:00:06]}  Qg3 {[%clk 0:00:03]} 89. e8=Q {[%clk 0:00:06]}  Kd3 {[%clk 0:00:03]} 90. Qeg6+ {[%clk 0:00:05]}  Qxg6 {[%clk 0:00:02]} 91. Qxg6+ {[%clk 0:00:06]}  Kxd4 {[%clk 0:00:03]} 92. f4 {[%clk 0:00:06]}  Ke3 {[%clk 0:00:04]} 93. f5 {[%clk 0:00:07]}  d4 {[%clk 0:00:03]} 94. f6 {[%clk 0:00:08]}  d3 {[%clk 0:00:04]} 95. f7 {[%clk 0:00:09]}  d2 {[%clk 0:00:05]} 96. Qg4 {[%clk 0:00:09]}  d1=Q {[%clk 0:00:05]} 97. Qxd1 {[%clk 0:00:10]}  Ke4 {[%clk 0:00:06]} 98. Ke7 {[%clk 0:00:10]}  Ke5 {[%clk 0:00:07]} 99. f8=Q {[%clk 0:00:10]}  Ke4 {[%clk 0:00:08]} 100. Qff3+ {[%clk 0:00:10]}  Ke5 {[%clk 0:00:08]} 101. Qdd5# {[%clk 0:00:09]} 1-0


[Site "https://www.chess.com"]

[Event "Titled Tuesday Blitz March 29 Early 2022"]
[White "Zhao, Jun"]
[Black "Meissner, Felix"]
[WhiteFideId "8602522"]
[BlackFideId "24671827"]
[WhiteElo "2547"]
[BlackElo "2350"]
[Result "1-0"]
[Round "03"]
[TimeControl "180+1"]
[Date "2022.03.29"]
[WhiteClock "0:00:09"]
[BlackClock "0:00:10"]

1. d4 {[%clk 0:02:59]}  g6 {[%clk 0:02:59]} 2. Bf4 {[%clk 0:02:58]}  Bg7 {[%clk 0:02:59]} 3. e3 {[%clk 0:02:58]}  d6 {[%clk 0:02:59]} 4. Nf3 {[%clk 0:02:57]}  b6 {[%clk 0:03:00]} 5. Be2 {[%clk 0:02:55]}  Bb7 {[%clk 0:03:00]} 6. O-O {[%clk 0:02:55]}  Nd7 {[%clk 0:03:01]} 7. h3 {[%clk 0:02:55]}  Ngf6 {[%clk 0:02:58]} 8. Bh2 {[%clk 0:02:54]}  O-O {[%clk 0:02:58]} 9. a4 {[%clk 0:02:54]}  a5 {[%clk 0:02:57]} 10. c3 {[%clk 0:02:50]}  Ne4 {[%clk 0:02:57]} 11. Nbd2 {[%clk 0:02:47]}  Nxd2 {[%clk 0:02:55]} 12. Nxd2 {[%clk 0:02:47]}  e5 {[%clk 0:02:53]} 13. Qb3 {[%clk 0:02:45]}  Qe7 {[%clk 0:02:49]} 14. Bf3 {[%clk 0:02:43]}  e4 {[%clk 0:02:44]} 15. Be2 {[%clk 0:02:41]}  Kh8 {[%clk 0:02:43]} 16. Qc2 {[%clk 0:02:24]}  f5 {[%clk 0:02:43]} 17. b4 {[%clk 0:02:23]}  g5 {[%clk 0:02:35]} 18. bxa5 {[%clk 0:02:16]}  f4 {[%clk 0:02:27]} 19. a6 {[%clk 0:02:04]}  Bd5 {[%clk 0:02:09]} 20. c4 {[%clk 0:01:33]}  f3 {[%clk 0:02:05]} 21. cxd5 {[%clk 0:01:28]}  fxe2 {[%clk 0:02:05]} 22. Rfe1 {[%clk 0:01:29]}  Nf6 {[%clk 0:01:52]} 23. Rac1 {[%clk 0:01:24]}  Rf7 {[%clk 0:01:51]} 24. Qc4 {[%clk 0:01:16]}  g4 {[%clk 0:01:32]} 25. h4 {[%clk 0:01:13]}  Nh5 {[%clk 0:01:26]} 26. Bg3 {[%clk 0:01:10]}  Bh6 {[%clk 0:01:15]} 27. Qxe2 {[%clk 0:01:06]}  Qd7 {[%clk 0:01:12]} 28. Nxe4 {[%clk 0:01:05]}  Qxa4 {[%clk 0:01:04]} 29. Ra1 {[%clk 0:01:00]}  Qd7 {[%clk 0:01:01]} 30. a7 {[%clk 0:00:59]}  Re7 {[%clk 0:01:00]} 31. Ng5 {[%clk 0:00:48]}  Bxg5 {[%clk 0:00:58]} 32. hxg5 {[%clk 0:00:48]}  Nxg3 {[%clk 0:00:55]} 33. fxg3 {[%clk 0:00:47]}  Qf5 {[%clk 0:00:54]} 34. e4 {[%clk 0:00:40]}  Qxg5 {[%clk 0:00:52]} 35. e5 {[%clk 0:00:40]}  h5 {[%clk 0:00:47]} 36. Qc2 {[%clk 0:00:25]}  Kg7 {[%clk 0:00:35]} 37. Qc6 {[%clk 0:00:23]}  h4 {[%clk 0:00:19]} 38. Qxa8 {[%clk 0:00:20]}  hxg3 {[%clk 0:00:19]} 39. Qd8 {[%clk 0:00:17]}  Qh4 {[%clk 0:00:17]} 40. Qxe7+ {[%clk 0:00:15]}  Qxe7 {[%clk 0:00:17]} 41. a8=Q {[%clk 0:00:15]}  Qh4 {[%clk 0:00:17]} 42. exd6 {[%clk 0:00:10]}  Qh2+ {[%clk 0:00:17]} 43. Kf1 {[%clk 0:00:10]}  Qh1+ {[%clk 0:00:18]} 44. Ke2 {[%clk 0:00:10]}  Qxg2+ {[%clk 0:00:18]} 45. Kd3 {[%clk 0:00:09]}  Qf3+ {[%clk 0:00:17]} 46. Kc4 {[%clk 0:00:10]}  g2 {[%clk 0:00:15]} 47. Re7+ {[%clk 0:00:09]}  Kg6 {[%clk 0:00:10]} 48. Qg8+ {[%clk 0:00:09]} 1-0


[Site "https://www.chess.com"]

[Event "Titled Tuesday Blitz March 29 Early 2022"]
[White "parintele_chess"]
[Black "Gu, Xiaobing"]
[BlackFideId "8602611"]
[WhiteElo "2231"]
[BlackElo "2174"]
[Result "1-0"]
[Round "03"]
[TimeControl "180+1"]
[Date "2022.03.30"]
[WhiteClock "0:02:19"]
[BlackClock "0:01:24"]

1. d4 {[%clk 0:03:00]}  Nf6 {[%clk 0:02:57]} 2. Bf4 {[%clk 0:02:59]}  g6 {[%clk 0:02:50]} 3. Nc3 {[%clk 0:02:59]}  d5 {[%clk 0:02:47]} 4. e3 {[%clk 0:02:59]}  Bg7 {[%clk 0:02:44]} 5. h4 {[%clk 0:03:00]}  h5 {[%clk 0:02:31]} 6. Bd3 {[%clk 0:02:59]}  c5 {[%clk 0:02:21]} 7. Nb5 {[%clk 0:02:56]}  Na6 {[%clk 0:02:16]} 8. c3 {[%clk 0:02:45]}  Bd7 {[%clk 0:02:00]} 9. a4 {[%clk 0:02:45]}  Qb6 {[%clk 0:01:44]} 10. Nf3 {[%clk 0:02:36]}  c4 {[%clk 0:01:38]} 11. Bc2 {[%clk 0:02:34]}  Bxb5 {[%clk 0:01:38]} 12. axb5 {[%clk 0:02:35]}  Nc7 {[%clk 0:01:38]} 13. Bxc7 {[%clk 0:02:30]}  Qxc7 {[%clk 0:01:38]} 14. Ne5 {[%clk 0:02:31]}  Ne4 {[%clk 0:01:28]} 15. Bxe4 {[%clk 0:02:25]}  dxe4 {[%clk 0:01:28]} 16. b6 {[%clk 0:02:20]}  Qxb6 {[%clk 0:01:24]} 17. Qa4+ {[%clk 0:02:19]} 1-0


[Site "https://www.chess.com"]

[Event "Titled Tuesday Blitz March 29 Early 2022"]
[White "volunteers1998"]
[Black "Derraugh, Geordie"]
[BlackFideId "2603950"]
[WhiteElo "2262"]
[BlackElo "2116"]
[Result "1-0"]
[Round "03"]
[TimeControl "180+1"]
[Date "2022.03.30"]
[WhiteClock "0:00:36"]
[BlackClock "0:00:52"]

1. e4 {[%clk 0:03:00]}  e5 {[%clk 0:02:58]} 2. Nf3 {[%clk 0:02:59]}  Nc6 {[%clk 0:02:58]} 3. Bc4 {[%clk 0:02:58]}  Bc5 {[%clk 0:02:58]} 4. b4 {[%clk 0:02:56]}  Bxb4 {[%clk 0:02:58]} 5. c3 {[%clk 0:02:56]}  Be7 {[%clk 0:02:59]} 6. d4 {[%clk 0:02:53]}  exd4 {[%clk 0:02:53]} 7. Qb3 {[%clk 0:02:51]}  Na5 {[%clk 0:02:50]} 8. Bxf7+ {[%clk 0:02:49]}  Kf8 {[%clk 0:02:51]} 9. Qa4 {[%clk 0:02:47]}  Kxf7 {[%clk 0:02:50]} 10. Qxa5 {[%clk 0:02:45]}  c6 {[%clk 0:02:42]} 11. Qa4 {[%clk 0:02:43]}  d6 {[%clk 0:02:36]} 12. cxd4 {[%clk 0:02:41]}  Nf6 {[%clk 0:02:36]} 13. Nc3 {[%clk 0:02:38]}  Re8 {[%clk 0:02:35]} 14. Qb3+ {[%clk 0:02:34]}  Kf8 {[%clk 0:02:33]} 15. Ng5 {[%clk 0:02:26]}  d5 {[%clk 0:02:33]} 16. e5 {[%clk 0:02:24]}  h6 {[%clk 0:02:33]} 17. Nf3 {[%clk 0:02:18]}  Nh7 {[%clk 0:02:24]} 18. O-O {[%clk 0:02:14]}  Kg8 {[%clk 0:02:22]} 19. Re1 {[%clk 0:02:09]}  Qb6 {[%clk 0:02:21]} 20. Qc2 {[%clk 0:02:07]}  Bg4 {[%clk 0:02:19]} 21. Rb1 {[%clk 0:01:50]}  Qc7 {[%clk 0:02:17]} 22. Nxd5 {[%clk 0:01:45]}  Qd7 {[%clk 0:02:14]} 23. Nxe7+ {[%clk 0:01:41]}  Rxe7 {[%clk 0:02:11]} 24. Rb3 {[%clk 0:01:24]}  Rf8 {[%clk 0:02:10]} 25. Ba3 {[%clk 0:01:21]}  Bxf3 {[%clk 0:01:47]} 26. Bxe7 {[%clk 0:01:19]}  Qxe7 {[%clk 0:01:39]} 27. Rxf3 {[%clk 0:01:18]}  Rxf3 {[%clk 0:01:38]} 28. gxf3 {[%clk 0:01:17]}  Ng5 {[%clk 0:01:39]} 29. Qf5 {[%clk 0:01:09]}  Qb4 {[%clk 0:01:35]} 30. Re3 {[%clk 0:01:06]}  Qxd4 {[%clk 0:01:35]} 31. e6 {[%clk 0:01:04]}  Qh4 {[%clk 0:00:51]} 32. e7 {[%clk 0:00:58]}  Nh3+ {[%clk 0:00:51]} 33. Qxh3 {[%clk 0:00:49]}  Qxh3 {[%clk 0:00:52]} 34. e8=Q+ {[%clk 0:00:49]}  Kh7 {[%clk 0:00:53]} 35. Qe4+ {[%clk 0:00:43]}  Kh8 {[%clk 0:00:52]} 36. Qg4 {[%clk 0:00:36]} 1-0


[Site "https://www.chess.com"]

[Event "Titled Tuesday Blitz March 29 Early 2022"]
[White "Aaditya Dhingra"]
[Black "Caruana, Fabiano"]
[WhiteFideId "25678191"]
[BlackFideId "2020009"]
[WhiteElo "1849"]
[BlackElo "2744"]
[Result "0-1"]
[Round "04"]
[TimeControl "180+1"]
[Date "2022.03.29"]
[WhiteClock "0:00:07"]
[BlackClock "0:00:56"]

1. e4 {[%clk 0:03:00]}  c6 {[%clk 0:02:58]} 2. Nf3 {[%clk 0:03:00]}  d5 {[%clk 0:02:58]} 3. Nc3 {[%clk 0:03:00]}  dxe4 {[%clk 0:02:59]} 4. Nxe4 {[%clk 0:03:00]}  Nf6 {[%clk 0:02:59]} 5. Qe2 {[%clk 0:02:58]}  Nxe4 {[%clk 0:02:59]} 6. Qxe4 {[%clk 0:02:59]}  Qd5 {[%clk 0:03:00]} 7. Qh4 {[%clk 0:02:59]}  Bf5 {[%clk 0:02:57]} 8. Bc4 {[%clk 0:02:56]}  Qd6 {[%clk 0:02:55]} 9. d3 {[%clk 0:02:55]}  e6 {[%clk 0:02:53]} 10. O-O {[%clk 0:02:53]}  Be7 {[%clk 0:02:52]} 11. Bf4 {[%clk 0:02:43]}  Bxh4 {[%clk 0:02:49]} 12. Bxd6 {[%clk 0:02:42]}  Be7 {[%clk 0:02:49]} 13. Be5 {[%clk 0:02:37]}  O-O {[%clk 0:02:44]} 14. Rfe1 {[%clk 0:02:34]}  Nd7 {[%clk 0:02:44]} 15. Bc3 {[%clk 0:02:31]}  Nb6 {[%clk 0:02:41]} 16. Bb3 {[%clk 0:02:29]}  a5 {[%clk 0:02:41]} 17. a3 {[%clk 0:02:26]}  a4 {[%clk 0:02:39]} 18. Ba2 {[%clk 0:02:26]}  Nd5 {[%clk 0:02:39]} 19. Bd2 {[%clk 0:02:26]}  Bf6 {[%clk 0:02:37]} 20. Rab1 {[%clk 0:02:19]}  Rfd8 {[%clk 0:02:37]} 21. Bg5 {[%clk 0:02:14]}  Bxg5 {[%clk 0:02:32]} 22. Nxg5 {[%clk 0:02:14]}  h6 {[%clk 0:02:32]} 23. Nf3 {[%clk 0:02:13]}  Rac8 {[%clk 0:02:30]} 24. h3 {[%clk 0:02:02]}  b5 {[%clk 0:02:28]} 25. g4 {[%clk 0:01:44]}  Bh7 {[%clk 0:02:27]} 26. Kh2 {[%clk 0:01:44]}  c5 {[%clk 0:02:24]} 27. Bxd5 {[%clk 0:01:41]}  Rxd5 {[%clk 0:02:23]} 28. Rbc1 {[%clk 0:01:19]}  c4 {[%clk 0:02:21]} 29. d4 {[%clk 0:01:18]}  c3 {[%clk 0:02:11]} 30. bxc3 {[%clk 0:01:08]}  Rxc3 {[%clk 0:02:09]} 31. Re3 {[%clk 0:01:08]}  Rxc2 {[%clk 0:01:59]} 32. Rxc2 {[%clk 0:01:08]}  Bxc2 {[%clk 0:02:00]} 33. Rc3 {[%clk 0:01:07]}  Be4 {[%clk 0:01:59]} 34. Ne5 {[%clk 0:00:59]}  f6 {[%clk 0:01:54]} 35. Nc6 {[%clk 0:00:56]}  Rd6 {[%clk 0:01:45]} 36. Na7 {[%clk 0:00:49]}  b4 {[%clk 0:01:17]} 37. axb4 {[%clk 0:00:39]}  Rxd4 {[%clk 0:01:17]} 38. f3 {[%clk 0:00:39]}  Bd5 {[%clk 0:01:14]} 39. b5 {[%clk 0:00:32]}  Rb4 {[%clk 0:01:12]} 40. Kg3 {[%clk 0:00:24]}  Rb3 {[%clk 0:01:11]} 41. Rc8+ {[%clk 0:00:19]}  Kh7 {[%clk 0:01:10]} 42. Nc6 {[%clk 0:00:15]}  Rxf3+ {[%clk 0:01:08]} 43. Kh2 {[%clk 0:00:14]}  Rf2+ {[%clk 0:01:03]} 44. Kg3 {[%clk 0:00:12]}  Rf3+ {[%clk 0:00:56]} 45. Kh2 {[%clk 0:00:11]}  Rc3 {[%clk 0:00:56]} 46. Ne7 {[%clk 0:00:06]}  Rxc8 {[%clk 0:00:56]} 47. Nxc8 {[%clk 0:00:07]}  a3 {[%clk 0:00:56]} 0-1


[Site "https://www.chess.com"]

[Event "Titled Tuesday Blitz March 29 Early 2022"]
[White "Abdusattorov, Nodirbek"]
[Black "Vestby-Ellingsen, Mads"]
[WhiteFideId "14204118"]
[BlackFideId "1520857"]
[WhiteElo "2663"]
[BlackElo "2232"]
[Result "1-0"]
[Round "04"]
[TimeControl "180+1"]
[Date "2022.03.30"]
[WhiteClock "0:00:13"]
[BlackClock "0:00:01"]

1. e4 {[%clk 0:03:00]}  e5 {[%clk 0:02:59]} 2. Nf3 {[%clk 0:03:00]}  Nc6 {[%clk 0:02:59]} 3. Bb5 {[%clk 0:03:00]}  a6 {[%clk 0:02:59]} 4. Ba4 {[%clk 0:03:00]}  Nf6 {[%clk 0:02:58]} 5. Nc3 {[%clk 0:02:59]}  Bb4 {[%clk 0:02:55]} 6. d3 {[%clk 0:02:57]}  O-O {[%clk 0:02:54]} 7. O-O {[%clk 0:02:54]}  Bxc3 {[%clk 0:02:50]} 8. bxc3 {[%clk 0:02:55]}  d6 {[%clk 0:02:50]} 9. Bg5 {[%clk 0:02:49]}  Qe7 {[%clk 0:02:46]} 10. Re1 {[%clk 0:02:45]}  Nd8 {[%clk 0:02:41]} 11. d4 {[%clk 0:02:43]}  Ne6 {[%clk 0:02:36]} 12. Bc1 {[%clk 0:02:34]}  c6 {[%clk 0:02:23]} 13. Bb3 {[%clk 0:02:28]}  Qc7 {[%clk 0:02:08]} 14. a4 {[%clk 0:02:17]}  a5 {[%clk 0:02:02]} 15. Ba3 {[%clk 0:02:07]}  Rd8 {[%clk 0:01:59]} 16. Qc1 {[%clk 0:02:05]}  Nh5 {[%clk 0:01:15]} 17. g3 {[%clk 0:01:34]}  c5 {[%clk 0:01:00]} 18. Bd5 {[%clk 0:01:24]}  Nf6 {[%clk 0:00:50]} 19. dxe5 {[%clk 0:01:15]}  dxe5 {[%clk 0:00:49]} 20. c4 {[%clk 0:01:16]}  Bd7 {[%clk 0:00:41]} 21. Bb2 {[%clk 0:01:14]}  Nd4 {[%clk 0:00:39]} 22. Nd2 {[%clk 0:00:54]}  Bg4 {[%clk 0:00:22]} 23. Kg2 {[%clk 0:00:45]}  Qd7 {[%clk 0:00:21]} 24. f3 {[%clk 0:00:42]}  Bh3+ {[%clk 0:00:20]} 25. Kf2 {[%clk 0:00:35]}  Be6 {[%clk 0:00:20]} 26. c3 {[%clk 0:00:35]}  Nc6 {[%clk 0:00:16]} 27. Qc2 {[%clk 0:00:32]}  Ne7 {[%clk 0:00:11]} 28. Kg1 {[%clk 0:00:30]}  Ng6 {[%clk 0:00:11]} 29. Nf1 {[%clk 0:00:30]}  Rac8 {[%clk 0:00:08]} 30. Bc1 {[%clk 0:00:29]}  Bxd5 {[%clk 0:00:07]} 31. cxd5 {[%clk 0:00:29]}  c4 {[%clk 0:00:06]} 32. Rb1 {[%clk 0:00:29]}  Ne8 {[%clk 0:00:05]} 33. Be3 {[%clk 0:00:24]}  Ra8 {[%clk 0:00:03]} 34. Bb6 {[%clk 0:00:25]}  Rdc8 {[%clk 0:00:04]} 35. Ne3 {[%clk 0:00:22]}  Nd6 {[%clk 0:00:03]} 36. h4 {[%clk 0:00:21]}  Ra6 {[%clk 0:00:03]} 37. Rb2 {[%clk 0:00:21]}  Ne7 {[%clk 0:00:02]} 38. Reb1 {[%clk 0:00:20]}  f5 {[%clk 0:00:03]} 39. Qg2 {[%clk 0:00:15]}  fxe4 {[%clk 0:00:03]} 40. fxe4 {[%clk 0:00:16]}  Rf8 {[%clk 0:00:03]} 41. Nf1 {[%clk 0:00:14]}  Qg4 {[%clk 0:00:01]} 42. Nd2 {[%clk 0:00:14]}  Rf7 {[%clk 0:00:01]} 43. Bc5 {[%clk 0:00:15]}  Nec8 {[%clk 0:00:01]} 44. Rf1 {[%clk 0:00:13]}  Rxf1+ {[%clk 0:00:01]} 45. Nxf1 {[%clk 0:00:12]}  b6 {[%clk 0:00:01]} 46. Bxd6 {[%clk 0:00:13]}  Nxd6 {[%clk 0:00:01]} 47. Nd2 {[%clk 0:00:13]} 1-0


[Site "https://www.chess.com"]

[Event "Titled Tuesday Blitz March 29 Early 2022"]
[White "Al-Tarboush, Ward"]
[Black "Demchenko, Anton"]
[WhiteFideId "7601450"]
[BlackFideId "4160258"]
[WhiteElo "2276"]
[BlackElo "2539"]
[Result "0-1"]
[Round "04"]
[TimeControl "180+1"]
[Date "2022.03.29"]
[WhiteClock "0:01:45"]
[BlackClock "0:01:02"]

1. e4 {[%clk 0:03:00]}  e5 {[%clk 0:02:59]} 2. Nf3 {[%clk 0:02:58]}  Nc6 {[%clk 0:02:59]} 3. Bb5 {[%clk 0:02:58]}  a6 {[%clk 0:03:00]} 4. Ba4 {[%clk 0:02:58]}  Nge7 {[%clk 0:03:00]} 5. O-O {[%clk 0:02:57]}  Ng6 {[%clk 0:03:00]} 6. c3 {[%clk 0:02:57]}  d6 {[%clk 0:03:00]} 7. d4 {[%clk 0:02:56]}  Bd7 {[%clk 0:03:01]} 8. Nbd2 {[%clk 0:02:52]}  Be7 {[%clk 0:03:00]} 9. Re1 {[%clk 0:02:50]}  O-O {[%clk 0:03:00]} 10. Nf1 {[%clk 0:02:50]}  b5 {[%clk 0:03:01]} 11. Bb3 {[%clk 0:02:49]}  exd4 {[%clk 0:03:01]} 12. cxd4 {[%clk 0:02:49]}  Na5 {[%clk 0:03:01]} 13. Bc2 {[%clk 0:02:49]}  c5 {[%clk 0:03:02]} 14. Ng3 {[%clk 0:02:49]}  Re8 {[%clk 0:03:02]} 15. e5 {[%clk 0:02:48]}  cxd4 {[%clk 0:02:49]} 16. exd6 {[%clk 0:02:35]}  Bxd6 {[%clk 0:02:44]} 17. Bg5 {[%clk 0:02:35]}  Rxe1+ {[%clk 0:02:38]} 18. Qxe1 {[%clk 0:02:32]}  Qb6 {[%clk 0:02:34]} 19. Rd1 {[%clk 0:02:23]}  Re8 {[%clk 0:02:18]} 20. Qf1 {[%clk 0:02:23]}  Bg4 {[%clk 0:02:13]} 21. Qd3 {[%clk 0:02:14]}  Nc4 {[%clk 0:02:09]} 22. Qxd4 {[%clk 0:02:06]}  Qxd4 {[%clk 0:02:05]} 23. Rxd4 {[%clk 0:02:06]}  Bxf3 {[%clk 0:02:05]} 24. gxf3 {[%clk 0:02:07]}  Be5 {[%clk 0:01:57]} 25. Re4 {[%clk 0:02:05]}  h6 {[%clk 0:01:36]} 26. Bc1 {[%clk 0:02:01]}  Rc8 {[%clk 0:01:37]} 27. Bb3 {[%clk 0:01:57]}  Nxb2 {[%clk 0:01:19]} 28. Bxb2 {[%clk 0:01:57]}  Bxb2 {[%clk 0:01:20]} 29. Nf5 {[%clk 0:01:57]}  Kf8 {[%clk 0:01:07]} 30. Bxf7 {[%clk 0:01:51]}  Rc1+ {[%clk 0:01:05]} 31. Kg2 {[%clk 0:01:49]}  Kxf7 {[%clk 0:01:05]} 32. Nd6+ {[%clk 0:01:45]}  Kg8 {[%clk 0:01:02]} 33. Re6 {[%clk 0:01:45]} 0-1


[Site "https://www.chess.com"]